bitfinex-derivatives/quotes_SOLF0:USTF0_20260310
["timestamp","ask_amount","ask_price","bid_price","bid_amount"]
[1773155934772,10.258,87.717,87.66,10.265]
[1773155935276,10.259,87.707,87.651,10.266]
[1773155935572,8.90770091,87.71,87.639,4.70463117]
[1773155936174,8.90770091,87.72,87.657,10.265]
[1773155936571,10.258,87.718,87.657,10.265]
[1773155936774,10.258,87.718,87.668,10.264]
[1773155937077,10.258,87.718,87.658,4.70461301]
[1773155937667,8.91903086,87.72,87.66,10.265]
[1773155938670,10.259,87.708,87.66,10.265]
[1773155939679,10.258,87.717,87.66,10.265]
[1773155940276,8.91903086,87.72,87.658,4.70461301]
[1773155940480,8.91903086,87.72,87.621,20.539]
[1773155940481,8.91903086,87.7,87.598,4.68573877]
[1773155940678,8.91903086,87.7,87.597,20.545]
[1773155940679,8.91903086,87.7,87.599,4.68573877]
[1773155941077,8.91903086,87.7,87.627,4.68573877]
[1773155942077,8.91903086,87.71,87.638,4.68475523]
[1773155942478,8.91903086,87.71,87.657,10.265]
[1773155942673,8.91903086,87.71,87.638,4.68475523]
[1773155943577,10.259,87.708,87.657,10.265]
[1773155944485,10.26,87.701,87.657,10.265]
[1773155944687,8.91903086,87.72,87.638,4.68475523]
[1773155944875,10.26,87.704,87.638,4.68475523]
[1773155945075,8.91903086,87.7,87.638,4.68475523]
[1773155945681,8.91903086,87.7,87.652,10.266]
[1773155945987,8.91903086,87.72,87.638,4.68475523]
[1773155946186,10.259,87.711,87.661,10.265]
[1773155949187,10.258,87.719,87.655,4.69737533]
[1773155950475,10.258,87.719,87.676,10.263]
[1773155950787,8.91903086,87.72,87.634,4.70880897]
[1773155951486,10.26,87.699,87.651,10.266]
[1773155951682,8.91903086,87.72,87.634,4.70880897]
[1773155951883,10.258,87.715,87.656,4.70711825]
[1773155952279,8.91903086,87.72,87.656,4.70711825]
[1773155952586,212.29339705,87.755,87.656,4.70711825]
[1773155952587,10.257,87.728,87.68,10.263]
[1773155952787,8.91903086,87.72,87.656,4.70711825]
[1773155953987,19.17703086,87.72,87.671,10.264]
[1773155954486,8.91903086,87.72,87.656,4.70711825]
[1773155954681,10.258,87.718,87.662,10.265]
[1773155955286,10.259,87.711,87.662,10.265]
[1773155956078,10.259,87.711,87.656,4.70711825]
[1773155957389,10.26,87.705,87.657,10.265]
[1773155957685,8.91903086,87.7,87.639,4.66977114]
[1773155959488,10.262,87.689,87.641,10.267]
[1773155960289,10.262,87.689,87.639,4.66977114]
[1773155960290,10.262,87.689,87.648,10.266]
[1773155960693,10.261,87.698,87.648,10.266]
[1773155960893,8.91903086,87.7,87.64,10.267]
[1773155961988,8.91903086,87.72,87.639,4.66977114]
[1773155962184,10.52220086,87.734,87.639,4.66977114]
[1773155962185,8.91903086,87.74,87.639,4.66977114]
[1773155962892,8.91903086,87.74,87.662,4.67654328]
[1773155963489,8.91903086,87.74,87.69,10.261]
[1773155963685,8.91903086,87.74,87.662,4.67654328]
[1773155964794,10.258,87.72,87.67,10.264]
[1773155965095,8.91903086,87.74,87.662,4.67654328]
[1773155965299,10.257,87.731,87.682,4.6743415]
[1773155967193,10.257,87.731,87.676,10.263]
[1773155967794,10.257,87.724,87.676,10.263]
[1773155968095,8.91903086,87.72,87.665,4.67256064]
[1773155968395,8.91903086,87.72,87.592,34.29]
[1773155968396,8.91903086,87.7,87.627,4.58398015]
[1773155968588,8.91903086,87.68,87.627,4.58398015]
[1773155969192,8.91903086,87.68,87.636,10.268]
[1773155969389,8.91903086,87.68,87.627,4.58398015]
[1773155970389,19.18203086,87.68,87.627,14.85298015]
[1773155971390,10.263,87.673,87.619,10.27]
[1773155971591,8.91903086,87.66,87.608,4.58543698]
[1773155972298,8.91903086,87.66,87.616,10.27]
[1773155972696,10.266,87.65,87.608,4.58543698]
[1773155973492,10.265,87.659,87.608,4.58543698]
[1773155973898,8.91903086,87.66,87.608,4.58543698]
[1773155974401,8.91903086,87.68,87.608,4.58543698]
[1773155974992,10.263,87.678,87.626,10.269]
[1773155975498,8.91903086,87.68,87.624,4.64442833]
[1773155977801,8.91903086,87.68,87.629,10.268]
[1773155978402,8.91903086,87.68,87.624,4.64442833]
[1773155978601,8.91903086,87.68,87.594,20.546]
[1773155978602,8.91903086,87.68,87.604,4.6316613]
[1773155978804,8.91903086,87.66,87.604,4.6316613]
[1773155979006,10.266,87.653,87.605,10.271]
[1773155979305,10.266,87.653,87.604,4.6316613]
[1773155980812,10.266,87.653,87.605,10.271]
[1773155981713,10.266,87.653,87.608,4.65659265]
[1773155983410,8.91903086,87.66,87.608,4.65659265]
[1773155985013,10.265,87.658,87.616,10.27]
[1773155985513,10.263,87.674,87.616,4.65563358]
[1773155985707,8.91903086,87.68,87.616,4.65563358]
[1773155986612,10.264,87.673,87.629,10.268]
[1773155986812,8.91903086,87.68,87.629,10.268]
[1773155987013,8.91903086,87.68,87.616,4.65563358]
[1773155988317,8.91903086,87.68,87.636,10.268]
[1773155988518,8.91903086,87.68,87.616,4.65563358]
[1773155989412,10.263,87.677,87.632,10.268]
[1773155989616,8.91903086,87.68,87.632,10.268]
[1773155990014,8.91903086,87.69,87.648,10.266]
[1773155990621,8.91903086,87.69,87.655,10.265]
[1773155990821,10.26,87.702,87.655,10.265]
[1773155993619,19.17803086,87.71,87.662,10.265]
[1773155993820,19.17803086,87.71,87.654,4.65817424]
[1773155993821,8.91903086,87.71,87.654,4.65817424]
[1773155994723,8.91903086,87.73,87.654,4.65817424]
[1773155995422,8.91903086,87.73,87.672,10.263]
[1773155995423,10.258,87.721,87.672,10.263]
[1773155995623,10.258,87.721,87.63,29.45603086]
[1773155995624,8.91903086,87.73,87.67,4.65817424]
[1773155995819,8.91903086,87.73,87.653,4.65991535]
[1773155996019,10.259,87.708,87.656,10.265]
[1773155996424,8.91903086,87.72,87.657,4.65991535]
[1773155996826,8.91903086,87.72,87.64,4.65991535]
[1773155996827,10.261,87.697,87.64,4.65991535]
[1773155997225,8.91903086,87.72,87.64,4.65991535]
[1773155997425,10.259,87.712,87.657,4.65991535]
[1773155997820,10.26,87.704,87.657,4.65991535]
[1773155999122,10.259,87.713,87.659,10.265]
[1773156000217,10.259,87.713,87.659,14.93853989]
[1773156001223,10.259,87.713,87.666,4.67353989]
[1773156001522,8.91768227,87.72,87.666,4.67353989]
[1773156001928,10.258,87.717,87.675,10.263]
[1773156002129,8.91768227,87.72,87.675,4.67397612]
[1773156002328,212.29339705,87.755,87.675,4.67397612]
[1773156002329,8.91768227,87.74,87.675,4.67397612]
[1773156002726,10.257,87.731,87.688,10.262]
[1773156002924,191.78539705,87.755,87.675,4.67397612]
[1773156003730,8.91768227,87.76,87.675,4.67397612]
[1773156003929,10.255,87.749,87.701,10.26]
[1773156004322,8.91768227,87.76,87.698,4.68817401]
[1773156004633,8.91768227,87.76,87.709,4.68817401]
[1773156004829,10.64656114,87.802,87.709,4.68817401]
[1773156005028,8.91768227,87.78,87.709,4.68817401]
[1773156005229,10.252,87.773,87.72,10.258]
[1773156005437,8.91768227,87.8,87.721,4.68817401]
[1773156005632,20.487,87.844,87.721,4.68817401]
[1773156005633,8.91768227,87.82,87.721,4.68817401]
[1773156006136,8.91768227,87.82,87.751,4.67780709]
[1773156006332,8.91768227,87.84,87.751,4.67780709]
[1773156007432,1.98222265,87.87,87.72,29.43368227]
[1773156007433,10.243,87.846,87.782,4.67780709]
[1773156008434,10.243,87.846,87.783,10.25]
[1773156008635,8.91768227,87.85,87.784,4.6445807]
[1773156009834,8.91768227,87.85,87.797,4.64354371]
[1773156010129,8.91768227,87.85,87.751,4.64354371]
[1773156010526,8.91768227,87.85,87.782,4.64354371]
[1773156011036,8.91768227,87.85,87.784,4.64354371]
[1773156011231,8.91768227,87.87,87.784,4.64354371]
[1773156011538,10.241,87.863,87.793,4.64354371]
[1773156012336,2.315e-05,87.849,87.799,4.63088489]
[1773156012731,8.91768227,87.91,87.811,4.63088489]
[1773156013630,8.91768227,87.93,87.853,4.63088489]
[1773156014837,8.91768227,87.91,87.853,4.63088489]
[1773156015034,8.91768227,87.91,87.831,4.64102503]
[1773156015437,8.91768227,87.89,87.831,4.64102503]
[1773156015931,8.91768227,87.91,87.831,4.64102503]
[1773156016136,10.236,87.906,87.831,4.64102503]
[1773156016532,8.91768227,87.93,87.831,4.64102503]
[1773156016731,10.234,87.929,87.865,4.63501463]
[1773156016932,8.91768227,87.93,87.865,4.63501463]
[1773156017129,8.91768227,87.94,87.865,4.63501463]
[1773156018134,8.91768227,87.94,87.867,4.68768019]
[1773156018330,182.32,87.979,87.781,159.462]
[1773156018331,8.91768227,87.92,87.821,4.68768019]
[1773156019434,8.91768227,87.92,87.82,8.91768227]
[1773156019435,8.91768227,87.92,87.853,4.68768019]
[1773156019636,8.91768227,87.94,87.853,4.68768019]
[1773156020536,8.91768227,87.92,87.853,4.68768019]
[1773156020736,8.91768227,87.94,87.853,4.68768019]
[1773156021541,8.91768227,87.92,87.854,10.242]
[1773156021742,8.91768227,87.92,87.82,8.91768227]
[1773156021743,8.91768227,87.92,87.855,4.75726986]
[1773156022833,8.91768227,87.92,87.856,4.75726986]
[1773156023234,8.91768227,87.9,87.842,10.244]
[1773156023640,8.91768227,87.9,87.843,4.74415025]
[1773156023848,8.91768227,87.96,87.872,10.24]
[1773156023849,8.91768227,87.92,87.872,10.24]
[1773156024041,8.91768227,87.94,87.873,4.74415025]
[1773156024249,8.91768227,88.02,87.873,4.74415025]
[1773156024250,8.91768227,87.96,87.873,4.74415025]
[1773156024544,8.91768227,87.96,87.909,4.74415025]
[1773156024943,8.91768227,87.96,87.89,4.74415025]
[1773156025140,8.91768227,87.94,87.89,4.74415025]
[1773156025341,10.233,87.937,87.89,4.74415025]
[1773156025544,20.451,87.998,87.841,4.74415025]
[1773156025545,8.91768227,87.92,87.841,4.74415025]
[1773156026143,8.91768227,87.9,87.825,4.77583128]
[1773156026844,8.91768227,87.88,87.825,4.77583128]
[1773156027747,8.91768227,87.86,87.771,4.78224983]
[1773156028057,8.91768227,87.9,87.771,4.78224983]
[1773156028058,8.91768227,87.84,87.771,4.78224983]
[1773156028347,10.242,87.856,87.792,4.78224983]
[1773156029338,8.91768227,87.84,87.787,10.25]
[1773156030346,8.91768227,87.84,87.753,282.85650141]
[1773156030347,8.91768227,87.84,87.777,15.02389226]
[1773156030544,8.91768227,87.84,87.777,4.77289226]
[1773156031548,8.91768227,87.84,87.753,282.85650141]
[1773156031549,10.244,87.837,87.768,10.252]
[1773156031747,8.91768227,87.82,87.758,4.79986713]
[1773156031949,8.91768227,87.82,87.753,282.85650141]
[1773156032150,10.247,87.815,87.753,282.85650141]
[1773156032350,20.472,87.912,87.754,4.79986713]
[1773156032555,8.91768227,87.84,87.754,4.79986713]
[1773156032957,8.91768227,87.82,87.754,4.79986713]
[1773156033659,8.91768227,87.8,87.735,4.80031232]
[1773156033859,8.91768227,87.8,87.708,4.80031232]
[1773156034063,8.91768227,87.78,87.708,4.80031232]
[1773156034460,8.91768227,87.78,87.731,10.257]
[1773156034760,8.91768227,87.78,87.708,4.80031232]
[1773156035267,8.91768227,87.78,87.717,10.258]
[1773156035468,8.91768227,87.78,87.718,4.80031232]
[1773156035661,8.91768227,87.78,87.664,20.529]
[1773156035662,8.91768227,87.78,87.681,4.78110005]
[1773156036068,8.91768227,87.78,87.691,4.78110005]
[1773156036674,8.91768227,87.8,87.732,10.256]
[1773156037759,8.91768227,87.8,87.732,15.03863959]
[1773156037960,194.32740919,87.836,87.744,4.78263959]
[1773156037961,8.91768227,87.82,87.744,4.78263959]
[1773156038463,8.91768227,87.82,87.765,10.253]
[1773156038864,8.91768227,87.84,87.744,4.78263959]
[1773156039063,8.91768227,87.84,87.775,10.251]
[1773156039265,8.91768227,87.84,87.769,4.78263959]
[1773156040458,8.91768227,87.84,87.77,15.0469286]
[1773156040661,159.241,87.904,87.73,8.91768227]
[1773156040662,8.91768227,87.85,87.771,4.7949286]
[1773156041363,10.243,87.848,87.771,4.7949286]
[1773156042468,8.91768227,87.85,87.771,4.7949286]
[1773156042957,8.91768227,87.85,87.793,10.249]
[1773156043667,8.91768227,87.89,87.793,4.78705985]
[1773156044265,8.91768227,87.89,87.823,4.76625753]
[1773156044666,8.91768227,87.91,87.823,4.76625753]
[1773156045068,8.91768227,87.91,87.851,10.243]
[1773156045463,8.91768227,87.91,87.842,4.76625753]
[1773156046166,8.91768227,87.93,87.842,4.76625753]
[1773156046766,8.91768227,87.94,87.842,4.76625753]
[1773156046967,8.91768227,87.94,87.86,4.75709625]
[1773156047673,10.234,87.929,87.862,10.241]
[1773156047874,8.91768227,87.94,87.86,4.75709625]
[1773156048071,8.91768227,87.92,87.86,4.75709625]
[1773156048873,8.91768227,87.94,87.864,4.7030739]
[1773156049871,10.234,87.928,87.859,10.242]
[1773156050064,8.91768227,87.94,87.845,4.70303873]
[1773156050472,10.234,87.928,87.845,4.70303873]
[1773156051574,8.91768227,87.94,87.845,4.70303873]
[1773156051575,10.235,87.918,87.858,10.242]
[1773156051773,8.91768227,87.92,87.811,4.70805613]
[1773156051975,8.91768227,87.96,87.835,10.244]
[1773156051976,8.91768227,87.9,87.835,10.244]
[1773156052465,8.91768227,87.9,87.828,4.70805613]
[1773156052671,8.91768227,87.9,87.83,10.245]
[1773156054272,8.91768227,87.9,87.839,10.244]
[1773156054478,8.91768227,87.9,87.828,4.70805613]
[1773156055381,8.91768227,87.9,87.848,10.243]
[1773156055867,8.91768227,87.9,87.838,10.244]
[1773156056181,8.91768227,87.9,87.828,4.70805613]
[1773156056475,10.235,87.914,87.828,4.70805613]
[1773156056678,8.91768227,87.92,87.828,4.70805613]
[1773156057079,8.91768227,87.92,87.856,10.242]
[1773156057281,8.91768227,87.92,87.85,4.70868489]
[1773156057969,8.91768227,87.92,87.864,10.241]
[1773156058174,10.235,87.919,87.864,10.241]
[1773156058981,8.91768227,87.94,87.872,10.24]
[1773156059479,8.91768227,87.94,87.867,4.70918096]
[1773156059680,8.8713148,87.95,87.867,4.70918096]
[1773156060878,8.8713148,87.93,87.871,10.24]
[1773156061072,8.8713148,87.93,87.848,4.71420397]
[1773156061682,10.237,87.9,87.84,10.244]
[1773156061883,10.237,87.9,87.828,4.70578977]
[1773156062081,10.238,87.892,87.839,10.244]
[1773156062286,8.8713148,87.89,87.828,4.70578977]
[1773156062488,8.8713148,87.89,87.79,8.8713148]
[1773156062489,8.8713148,87.93,87.831,4.70578977]
[1773156062785,8.8713148,87.95,87.831,4.70578977]
[1773156062988,10.234,87.928,87.861,4.70578977]
[1773156063673,10.235,87.92,87.866,10.241]
[1773156063872,8.8713148,87.93,87.861,4.70578977]
[1773156065182,8.8713148,87.95,87.861,4.70578977]
[1773156066585,10.233,87.938,87.88,10.239]
[1773156067186,10.233,87.93,87.88,10.239]
[1773156067487,10.233,87.93,87.87,14.92780747]
[1773156067682,10.233,87.93,87.871,4.68780747]
[1773156068190,8.8713148,87.95,87.852,4.71153353]
[1773156068380,8.8713148,87.93,87.852,4.71153353]
[1773156068781,10.236,87.905,87.858,10.242]
[1773156069079,8.8713148,87.93,87.852,4.71153353]
[1773156069280,8.8713148,87.93,87.79,8.8713148]
[1773156069281,8.8713148,87.91,87.834,4.71153353]
[1773156069681,10.239,87.886,87.834,14.95553353]
[1773156069884,8.8713148,87.91,87.834,14.95553353]
[1773156069885,8.8713148,87.91,87.834,4.71153353]
[1773156070277,8.8713148,87.91,87.836,10.244]
[1773156070677,8.8713148,87.91,87.834,4.71153353]
[1773156070877,10.237,87.902,87.842,10.244]
[1773156071083,8.8713148,87.89,87.816,4.71038703]
[1773156071982,8.8713148,87.87,87.797,4.71374563]
[1773156072696,10.243,87.852,87.797,4.71374563]
[1773156072878,8.8713148,87.87,87.797,4.71374563]
[1773156073689,8.8713148,87.89,87.797,4.71374563]
[1773156074081,8.8713148,87.87,87.797,4.71374563]
[1773156074697,8.8713148,87.87,87.758,20.507]
[1773156074698,8.8713148,87.87,87.779,4.73907506]
[1773156074888,8.8713148,87.85,87.779,4.73907506]
[1773156075081,8.8713148,87.85,87.716,159.581]
[1773156075082,8.8713148,87.83,87.764,4.73907506]
[1773156075286,8.8713148,87.81,87.744,4.73907506]
[1773156076094,8.8713148,87.83,87.754,4.73967572]
[1773156076996,8.8713148,87.85,87.754,4.73967572]
[1773156077383,8.8713148,87.85,87.778,10.251]
[1773156077790,8.8713148,87.85,87.772,4.73967572]
[1773156077987,8.8713148,87.85,87.797,10.249]
[1773156078192,8.8713148,87.87,87.79,4.7643776]
[1773156078495,8.8713148,87.89,87.791,4.7643776]
[1773156078796,8.8713148,87.89,87.818,4.7643776]
[1773156080192,10.24,87.87,87.818,4.7643776]
[1773156081291,19.1113148,87.87,87.818,4.7643776]
[1773156082096,10.241,87.862,87.799,4.72512122]
[1773156082399,8.8713148,87.85,87.779,4.72512122]
[1773156082798,10.244,87.843,87.78,10.251]
[1773156083002,8.8713148,87.84,87.779,4.72512122]
[1773156084291,8.8713148,87.84,87.783,10.251]
[1773156084600,8.8713148,87.84,87.736,20.512]
[1773156084601,8.8713148,87.84,87.784,4.72704464]
[1773156084793,8.8713148,87.84,87.742,4.72704464]
[1773156084995,8.8713148,87.84,87.787,4.72704464]
[1773156085900,10.244,87.839,87.762,4.72330381]
[1773156086108,8.8713148,87.84,87.762,4.72330381]
[1773156086610,19.1153148,87.84,87.777,10.251]
[1773156087307,19.1153148,87.84,87.777,14.97430381]
[1773156087716,19.1153148,87.84,87.781,10.251]
[1773156088109,10.243,87.849,87.778,4.71892007]
[1773156088406,8.8713148,87.86,87.797,10.249]
[1773156088807,8.8713148,87.86,87.734,13.40319314]
[1773156088808,8.8713148,87.86,87.808,10.248]
[1773156089008,8.8713148,87.86,87.798,4.71892007]
[1773156089305,8.8713148,87.86,87.778,4.71892007]
[1773156089512,10.243,87.852,87.778,4.71892007]
[1773156090109,8.8713148,87.86,87.778,4.71892007]
[1773156090110,10.244,87.843,87.789,10.25]
[1773156090308,10.244,87.843,87.778,4.71892007]
[1773156090309,8.8713148,87.86,87.778,4.71892007]
[1773156090716,10.244,87.842,87.786,14.96877697]
[1773156091007,13.73213467,87.91,87.735,20.513]
[1773156091008,8.8713148,87.84,87.736,4.71877697]
[1773156091516,8.8713148,87.84,87.768,4.71877697]
[1773156091813,8.8713148,87.8,87.731,4.723264]
[1773156093017,8.8713148,87.84,87.712,4.723264]
[1773156093018,8.8713148,87.78,87.712,4.723264]
[1773156093611,10.252,87.769,87.716,10.258]
[1773156093910,8.8713148,87.78,87.712,4.723264]
[1773156094113,10.251,87.779,87.725,10.257]
[1773156094911,8.8713148,87.78,87.712,4.723264]
[1773156095511,10.252,87.771,87.722,10.258]
[1773156095717,8.8713148,87.78,87.712,4.723264]
[1773156097511,10.251,87.779,87.73,10.257]
[1773156097911,8.8713148,87.78,87.73,10.257]
[1773156098214,8.8713148,87.84,87.739,10.256]
[1773156098215,8.8713148,87.8,87.739,10.256]
[1773156098412,8.8713148,87.8,87.739,4.7770713]
[1773156098612,8.8713148,87.82,87.739,4.7770713]
[1773156099010,8.8713148,87.82,87.741,4.7770713]
[1773156099316,8.8713148,87.84,87.774,4.7770713]
[1773156100022,20.475,87.897,87.795,10.249]
[1773156100023,10.243,87.848,87.795,10.249]
[1773156100421,10.243,87.848,87.774,4.7770713]
[1773156100926,10.243,87.848,87.795,10.249]
[1773156102723,10.242,87.857,87.795,10.249]
[1773156103220,8.8713148,87.86,87.805,10.248]
[1773156103625,8.8713148,87.86,87.761,4.77769948]
[1773156103922,8.8713148,87.86,87.76,8.8713148]
[1773156103923,8.8713148,87.86,87.791,10.25]
[1773156104626,8.8713148,87.86,87.78,4.78051284]
[1773156105025,8.8713148,87.86,87.788,10.25]
[1773156105426,8.8713148,87.86,87.804,10.248]
[1773156105621,8.8713148,87.86,87.799,4.78051284]
[1773156107327,10.243,87.848,87.799,4.78051284]
[1773156107626,8.8713148,87.86,87.78,4.7805106]
[1773156108122,8.8713148,87.84,87.78,4.7805106]
[1773156108321,8.8713148,87.84,87.783,10.25]
[1773156108322,19.1153148,87.84,87.783,10.25]
[1773156108835,10.246,87.822,87.78,4.7805106]
[1773156109029,8.8713148,87.84,87.773,10.252]
[1773156109626,10.246,87.822,87.764,10.253]
[1773156109823,10.246,87.822,87.761,4.78258576]
[1773156110434,10.246,87.822,87.763,10.253]
[1773156110635,10.246,87.822,87.761,4.78258576]
[1773156111133,10.247,87.813,87.743,4.7846079]
[1773156111335,8.8713148,87.8,87.701,4.7846079]
[1773156111527,8.8713148,87.78,87.701,4.7846079]
[1773156112031,8.8713148,87.78,87.719,10.258]
[1773156112032,10.252,87.773,87.719,10.258]
[1773156112230,8.8713148,87.78,87.701,4.7846079]
[1773156112629,10.252,87.769,87.717,10.258]
[1773156113233,10.253,87.761,87.708,10.259]
[1773156114236,10.252,87.77,87.72,10.258]
[1773156114634,10.252,87.77,87.701,4.7846079]
[1773156115138,10.253,87.762,87.701,4.7846079]
[1773156116037,10.252,87.771,87.701,4.7846079]
[1773156116639,8.8713148,87.78,87.701,4.7846079]
[1773156117432,8.8713148,87.78,87.726,10.257]
[1773156117433,10.251,87.777,87.726,10.257]
[1773156118143,8.8713148,87.78,87.701,4.7846079]
[1773156118737,8.8713148,87.76,87.708,10.259]
[1773156119041,8.8713148,87.76,87.701,4.7846079]
[1773156119243,8.8713148,87.76,87.716,10.258]
[1773156120043,8.8713148,87.78,87.701,4.7846079]
[1773156120648,10.251,87.779,87.701,4.7846079]
[1773156120942,13.73213467,87.843,87.701,4.7846079]
[1773156120943,8.8713148,87.76,87.701,4.7846079]
[1773156121139,8.8713148,87.74,87.674,10.263]
[1773156121340,8.8713148,87.72,87.659,4.80515837]
[1773156121536,8.8713148,87.72,87.621,4.80515837]
[1773156121734,8.8713148,87.72,87.63,8.92003084]
[1773156121735,8.92003084,87.72,87.63,8.92003084]
[1773156121932,8.92003084,87.78,87.63,8.92003084]
[1773156121933,8.92003084,87.74,87.631,4.79111]
[1773156122137,10.256,87.733,87.665,4.79111]
[1773156122838,8.92003084,87.74,87.689,10.261]
[1773156123837,10.257,87.728,87.678,10.263]
[1773156124145,10.257,87.728,87.665,4.79111]
[1773156124346,10.257,87.728,87.678,10.263]
[1773156124640,8.92003084,87.74,87.656,4.80661608]
[1773156124641,10.258,87.719,87.656,4.80661608]
[1773156125143,10.256,87.736,87.656,4.80661608]
[1773156125343,8.92003084,87.74,87.656,4.80661608]
[1773156126343,10.256,87.738,87.689,10.261]
[1773156127043,10.257,87.73,87.678,10.263]
[1773156127838,10.257,87.73,87.616,10.12905145]
[1773156127839,8.92003084,87.72,87.651,4.82033301]
[1773156128040,8.92003084,87.72,87.616,4.82033301]
[1773156128041,8.92003084,87.7,87.616,4.82033301]
[1773156128240,8.92003084,87.68,87.63,10.268]
[1773156128540,8.92003084,87.68,87.56,13.40319314]
[1773156128541,8.92003084,87.66,87.596,444.99293125]
[1773156129037,8.92003084,87.72,87.569,4.82033301]
[1773156129038,8.92003084,87.64,87.569,4.82033301]
[1773156129238,159.592,87.711,87.549,4.82033301]
[1773156129239,8.92003084,87.62,87.549,4.82033301]
[1773156130035,10.27,87.618,87.549,4.82033301]
[1773156130241,8.92003084,87.62,87.549,4.82033301]
[1773156130542,8.92003084,87.66,87.53,4.83004851]
[1773156130543,8.92003084,87.6,87.53,4.83004851]
[1773156130742,8.92003084,87.6,87.495,4.83004851]
[1773156131139,159.703,87.65,87.495,4.83004851]
[1773156131140,8.92003084,87.58,87.495,4.83004851]
[1773156131347,8.92003084,87.56,87.495,4.83004851]
[1773156131648,8.92003084,87.58,87.495,4.83004851]
[1773156131851,8.92003084,87.58,87.518,10.282]
[1773156132348,8.92003084,87.58,87.519,4.99135198]
[1773156132550,8.92003084,87.6,87.528,10.28]
[1773156132736,8.92003084,87.58,87.495,4.99135198]
[1773156133141,8.92003084,87.56,87.495,4.99135198]
[1773156133747,8.92003084,87.56,87.496,10.284]
[1773156133947,8.92003084,87.56,87.434,160.096]
[1773156133948,8.92003084,87.56,87.471,4.95381092]
[1773156134344,8.92003084,87.6,87.45,8.92003084]
[1773156134345,10.279,87.537,87.466,10.288]
[1773156134750,10.279,87.537,87.45,13.87384176]
[1773156134751,8.92003084,87.54,87.451,4.95381092]
[1773156134946,8.92003084,87.56,87.48,4.95381092]
[1773156135147,159.714,87.644,87.48,4.95381092]
[1773156135148,8.92003084,87.57,87.48,4.95381092]
[1773156135344,8.92003084,87.57,87.508,15.23681092]
[1773156135542,8.92003084,87.59,87.509,4.95381092]
[1773156135945,10.273,87.588,87.52,10.281]
[1773156136150,8.92003084,87.59,87.52,10.281]
[1773156136654,8.92003084,87.59,87.526,10.281]
[1773156137449,8.92003084,87.59,87.521,4.91503403]
[1773156137450,8.92003084,87.59,87.513,10.282]
[1773156137645,8.92003084,87.57,87.498,4.91503403]
[1773156138151,8.92003084,87.59,87.512,10.282]
[1773156138152,10.274,87.587,87.512,10.282]
[1773156138350,8.92003084,87.59,87.498,4.91503403]
[1773156138853,8.92003084,87.59,87.526,4.91425926]
[1773156139754,8.92003084,87.59,87.529,10.28]
[1773156139954,8.92003084,87.61,87.526,4.91425926]
[1773156140255,8.92003084,87.61,87.54,10.279]
[1773156140256,10.271,87.609,87.54,10.279]
[1773156140457,10.271,87.609,87.526,4.91425926]
[1773156140751,10.272,87.599,87.528,10.28]
[1773156141157,8.92003084,87.61,87.526,4.91425926]
[1773156141356,8.92003084,87.61,87.539,10.279]
[1773156141557,8.92003084,87.61,87.526,4.91425926]
[1773156142465,8.92003084,87.61,87.55,10.278]
[1773156143061,8.92003084,87.61,87.55,4.90934451]
[1773156143263,8.92003084,87.61,87.529,4.90934451]
[1773156143661,19.18903084,87.63,87.552,4.88960836]
[1773156144154,8.92003084,87.66,87.534,10.28]
[1773156144155,8.92003084,87.61,87.534,10.28]
[1773156144855,8.92003084,87.61,87.527,4.88960836]
[1773156145665,10.272,87.597,87.531,10.28]
[1773156145965,8.92003084,87.61,87.527,4.88960836]
[1773156147058,10.272,87.597,87.529,10.28]
[1773156147265,8.92003084,87.57,87.491,4.85336883]
[1773156147464,8.92003084,87.59,87.491,4.85336883]
[1773156147465,8.92003084,87.56,87.491,4.85336883]
[1773156147761,8.92003084,87.56,87.44,20.582]
[1773156147762,8.92003084,87.54,87.471,4.84893639]
[1773156148159,8.92003084,87.54,87.477,10.286]
[1773156149365,10.279,87.538,87.477,10.286]
[1773156150265,8.92003084,87.52,87.431,4.79891015]
[1773156150570,8.92003084,87.5,87.431,4.79891015]
[1773156150763,8.92003084,87.5,87.407,4.79891015]